fUSD/lending_fUSD_20260107
["ID","MTS","AMOUNT","RATE_DAILY","PERIOD"]
[400631232,1767751844277,-13700.0,0.000248,3]
[400631394,1767751845856,-151.0,0.00017957,2]
[400631397,1767751845872,-151.0,0.00017957,2]
[400631400,1767751845887,-690.61544291,0.000248,3]
[400631402,1767751845896,-287.61899177,0.00024895,2]
[400631404,1767751845905,-217.05022784,0.00025406,2]
[400631406,1767751845915,-298.26089446,0.00026264,2]
[400631408,1767751845924,-150.0,0.00027369,2]
[400631437,1767751846284,-311.2,0.00027397,3]
[400631439,1767751846294,-420.0,0.00027397,7]
[400631441,1767751846303,-558.25434302,0.00027397,30]
[400631791,1767751862389,2334.47294411,0.00027275,120]
[400631795,1767751933031,184.0,0.00032877,120]
[400631798,1767752101729,2500.0,0.0003287,120]
[400631799,1767752108564,2500.0,0.0003287,120]
[400631800,1767752124885,2500.0,0.0003287,120]
[400631801,1767752136080,1000.0,0.0003287,120]
[400631802,1767752145649,1000.0,0.0003287,120]
[400631803,1767752153970,520.0,0.0003287,120]
[400631811,1767752506612,3500.0,0.0003287,120]
[400631814,1767752568378,7650.0,0.0003287,120]
[400631819,1767752647230,263.22,8.867e-05,2]
[400631820,1767752647847,263.22,9.334e-05,2]
[400631821,1767752647906,263.22,9.801e-05,2]
[400631822,1767752647978,263.22,0.00010267,2]
[400631823,1767752648085,263.22,0.00010734,2]
[400631824,1767752648271,263.22,0.00011201,2]
[400631825,1767752648467,263.22,0.00011667,2]
[400631826,1767752648668,263.22,0.00012134,2]
[400631827,1767752648884,263.22,0.00012601,2]
[400631828,1767752649090,263.22,0.00013067,2]
[400631829,1767752649377,263.22,0.00013534,2]
[400631830,1767752649572,263.22,0.00014001,2]
[400631831,1767752649977,263.22,0.00014467,2]
[400631832,1767752650224,263.22,0.00014934,2]
[400631833,1767752650448,263.22,0.00015401,2]
[400631834,1767752650648,263.22,0.00015867,2]
[400631839,1767752785440,422.3,0.00032877,120]
[400631891,1767752843317,179.77,0.00013399,2]
[400631892,1767752850119,-263.22,0.00016334,2]
[400631893,1767752850142,-250.0,0.00016393,2]
[400631894,1767752850164,-600.0,0.00016451,2]
[400631895,1767752850186,-195.0,0.00016568,2]
[400631896,1767752850207,-227.59193555,0.00016568,2]
[400631897,1767752850228,-250.0,0.00016589,2]
[400631898,1767752850250,-600.0,0.00016794,2]
[400631899,1767752850271,-600.0,0.00016794,2]
[400631900,1767752850293,-263.22,0.00016801,2]
[400631901,1767752850314,-348.59171408,0.00017085,2]
[400631985,1767752923681,3005.82487842,0.00032876,120]
[400632012,1767753032055,-968.74163712,0.00016863,2]
[400632013,1767753032067,-883.67836288,0.00016863,2]
[400632014,1767753032077,-302.52168594,0.00016902,2]
[400632015,1767753032086,-195.0,0.00016942,2]
[400632016,1767753032096,-287.79247142,0.00017021,2]
[400632017,1767753032106,-318.07842661,0.00017042,2]
[400632018,1767753032116,-4213.18828592,0.00017085,2]
[400632019,1767753032128,-1200.0,0.00017267,2]
[400632020,1767753032137,-263.22,0.00017268,2]
[400632021,1767753032146,-300.0,0.00017351,2]
[400632022,1767753032155,-300.0,0.00017351,2]
[400632023,1767753032164,-5804.97726912,0.00017352,2]
[400632024,1767753032174,-1152.269,0.00017444,2]
[400632025,1767753032183,-170.695,0.00017444,2]
[400632026,1767753032192,-1600.70015005,0.000175,2]
[400632027,1767753032205,-114423.40813903,0.00017671,2]
[400632028,1767753032217,-99190.47187178,0.00017671,2]
[400632029,1767753032229,-999.0,0.00017671,2]
[400632030,1767753032244,-124212.75991171,0.00017671,2]
[400632032,1767753032255,-1341.75492233,0.00017671,2]
[400632034,1767753032271,-338.0,0.00017671,2]
[400632078,1767753038531,-151.0,0.00017527,2]
[400632080,1767753038540,-151.0,0.00017527,2]
[400632081,1767753038550,-97.73595211,0.0001767,2]
[400632083,1767753038562,-402.26404789,0.0001767,2]
[400632085,1767753038571,-164.62340728,0.0001767,2]
[400632087,1767753038580,-500.0,0.0001767,2]
[400632089,1767753038589,-500.0,0.0001767,2]
[400632090,1767753038599,-500.0,0.0001767,2]
[400632092,1767753038609,-364.99421189,0.0001767,2]
[400632094,1767753038619,-500.0,0.0001767,2]
[400632096,1767753038628,-500.0,0.0001767,2]
[400632097,1767753038638,-263.91807076,0.0001767,2]
[400632099,1767753038648,-659494.60515515,0.00017671,2]
[400632101,1767753038657,-263.22,0.00017734,2]
[400632103,1767753038667,-343.67371877,0.00017773,2]
[400632105,1767753038677,-234.79062824,0.00017789,2]
[400632106,1767753038686,-339.19668537,0.00017789,2]
[400632108,1767753038696,-228.7717873,0.00017789,2]
[400632110,1767753038705,-500.0,0.00017789,2]
[400632112,1767753038715,-500.0,0.00017789,2]
[400632114,1767753038724,-376.99773354,0.00017789,2]
[400632115,1767753038734,-500.0,0.00017789,2]
[400632117,1767753038744,-552.18049991,0.00017789,2]
[400632119,1767753038753,-644.75627455,0.00017789,2]
[400632121,1767753038762,-500.0,0.00017789,2]
[400632123,1767753038771,-500.0,0.00017789,2]
[400632125,1767753038780,-500.0,0.00017789,2]
[400632126,1767753038790,-171.12112338,0.00017789,2]
[400632128,1767753038799,-500.0,0.00017789,2]
[400632130,1767753038809,-500.0,0.00017789,2]
[400632132,1767753038818,-500.0,0.00017789,2]
[400632134,1767753038829,-500.0,0.00017789,2]
[400632136,1767753038841,-500.0,0.00017789,2]
[400632137,1767753038850,-204.59417983,0.00017789,2]
[400632139,1767753038860,-151.0,0.00017789,2]
[400632141,1767753038871,-151.0,0.00017789,2]
[400632143,1767753038881,-151.0,0.00017789,2]
[400632144,1767753038890,-151.0,0.00017789,2]
[400632146,1767753038900,-151.0,0.00017789,2]
[400632148,1767753038910,-289.99586171,0.00017789,2]
[400632150,1767753038920,-550.0,0.00017798,2]
[400632152,1767753038930,-1138.02,0.00017799,2]
[400632153,1767753038941,-500.0,0.00017799,2]
[400632155,1767753038950,-500.0,0.00017799,2]
[400632157,1767753038961,-500.0,0.00017799,2]
[400632159,1767753038971,-520.31559281,0.00017799,2]
[400632161,1767753038980,-500.0,0.00017799,2]
[400632163,1767753038990,-169.88562193,0.00017812,2]
[400632165,1767753038999,-169.88562193,0.00017854,2]
[400632167,1767753039010,-169.88562193,0.00017895,2]
[400632168,1767753039020,-163.15265568,0.000179,2]
[400632170,1767753039030,-25000.0,0.000179,3]
[400632172,1767753039039,-178.03975585,0.000179,3]
[400632174,1767753039048,-602.29521682,0.000179,2]
[400632175,1767753039058,-1299.45908539,0.000179,2]
[400632177,1767753039067,-169.88562193,0.00017937,2]
[400632179,1767753039077,-302.84008199,0.00017968,2]
[400632181,1767753039086,-195.0,0.00017968,2]
[400632183,1767753039095,-300.0,0.00017968,2]
[400632184,1767753039105,-195.0,0.00017968,2]
[400632186,1767753039114,-193.0,0.00017968,2]
[400632188,1767753039123,-2500.0,0.00017968,2]
[400632190,1767753039133,-676.2914001,0.00017968,2]
[400632192,1767753039143,-600.0,0.00017968,2]
[400632194,1767753039152,-250.0,0.00017968,2]
[400632196,1767753039161,-310.0,0.00017973,2]
[400632197,1767753039170,-411.91622264,0.00017973,2]
[400632199,1767753039179,-166.17868606,0.00017973,2]
[400632201,1767753039188,-500.0,0.00017973,2]
[400632203,1767753039197,-500.0,0.00017973,2]
[400632205,1767753039206,-500.0,0.00017973,2]
[400632207,1767753039215,-500.0,0.00017973,2]
[400632208,1767753039224,-500.0,0.00017973,2]
[400632210,1767753039234,-224.4368293,0.00017973,2]
[400632212,1767753039243,-500.0,0.00017973,2]
[400632214,1767753039252,-500.0,0.00017973,2]
[400632216,1767753039261,-500.0,0.00017973,2]
[400632218,1767753039270,-500.0,0.00017973,2]
[400632220,1767753039279,-552.50710843,0.00017973,2]
[400632222,1767753039288,-509.85167705,0.00017973,2]
[400632224,1767753039297,-517.58242797,0.00017973,2]
[400632225,1767753039306,-500.0,0.00017973,2]
[400632227,1767753039316,-500.0,0.00017973,2]
[400632229,1767753039325,-410.88426435,0.00017973,2]
[400632231,1767753039334,-500.39976205,0.00017973,2]
[400632233,1767753039342,-500.0,0.00017973,2]
[400632234,1767753039351,-500.0,0.00017973,2]
[400632236,1767753039360,-500.0,0.00017973,2]
[400632238,1767753039369,-500.0,0.00017973,2]
[400632240,1767753039378,-169.88562193,0.00017978,2]
[400632242,1767753039387,-154.90963793,0.0001799,2]
[400632244,1767753039399,-154.90963793,0.0001799,2]
[400632246,1767753039408,-151.0,0.00017997,2]
[400632248,1767753039417,-151.0,0.00017997,2]
[400632249,1767753039427,-273281.8441728,0.00018,2]
[400632252,1767753039440,-4846489.49695087,0.00018,2]
[400632315,1767753040165,-829.590046,0.00016778,2]
[400632318,1767753040174,-56.93450378,0.00018,2]
[400632350,1767753040431,-1118003.88967398,0.00018,2]
[400632747,1767753044070,-180145.08056602,0.00018,2]
[400632813,1767753044682,-78.63317819,0.00018,2]
[400632962,1767753046124,-1298.03999989,0.00018,2]
[400632979,1767753046284,-6909.76013635,0.00018,2]
[400633349,1767753136429,208.0,9.989e-05,2]
[400633350,1767753136475,208.0,9.989e-05,2]
[400633351,1767753136759,208.0,9.989e-05,2]
[400633352,1767753137128,208.0,9.989e-05,2]
[400633353,1767753192126,4873.2083,0.00032877,120]
[400633356,1767753317230,4333.49,0.00016773,2]
[400633357,1767753354277,335.32424595,0.00016756,2]
[400633358,1767753415174,1000.0,0.00032876,120]
[400633359,1767753459691,1271.0,0.00032876,120]
[400633360,1767753462126,-163.04711871,0.00016,2]
[400633363,1767753559812,3000.0,0.0003287,120]
[400633364,1767753567706,2500.0,0.0003287,120]
[400633365,1767753592950,1000.0,0.00032876,120]
[400633366,1767753680834,2576.0,0.0003287,120]
[400633367,1767753726042,-603.00428135,0.0001666,2]
[400633368,1767753727853,311.76421483,0.00032877,120]
[400633369,1767753730270,-300.0,0.0001666,2]
[400633370,1767753816398,-171.74989002,0.00016588,2]
[400633371,1767753878578,166.66,0.00015708,2]
[400633372,1767753878768,166.66,0.00016038,2]
[400633373,1767753891186,-166.66,0.00016369,2]
[400633374,1767753891212,-28.25010998,0.00016588,2]
[400633375,1767753891235,-145.91285856,0.00016624,2]
[400633376,1767753907345,-49.08714144,0.00016624,2]
[400633377,1767753907368,-202.07989002,0.00016642,2]
[400633378,1767753935842,-521.66079154,0.00016571,2]
[400633379,1767753937442,-318.99052199,0.00016571,2]
[400633380,1767753939725,-161.1,0.00016571,2]
[400633381,1767753996985,-511.54346455,0.00016362,2]
[400633382,1767754131004,-163.03828728,0.00016309,2]
[400633383,1767754156110,-36.96171272,0.00016309,2]
[400633384,1767754156135,-151.09653545,0.00016362,2]
[400633385,1767754156156,-250.0,0.00016466,2]
[400633386,1767754156176,-295.44868647,0.00016571,2]
[400633387,1767754156202,-376.22104568,0.00016607,2]
[400633388,1767754172163,-223.77895432,0.00016607,2]
[400633389,1767754172185,-100.76019197,0.00016642,2]
[400633390,1767754172207,-96.99571865,0.0001666,2]
[400633391,1767754172228,-166.66,0.000167,2]
[400633392,1767754172250,-1200.0,0.0001672,2]
[400633393,1767754172271,-3558.6909798,0.00016721,2]
[400633394,1767754195730,913.95,0.00024786,120]
[400633398,1767754232173,-913.95,0.00016524,2]
[400633399,1767754232182,-73.4979749,0.00016597,2]
[400633400,1767754232193,-736.07642552,0.00016597,2]
[400633401,1767754232206,-190.42559958,0.00016597,2]
[400633402,1767754232215,-4763.3990202,0.00016721,2]
[400633403,1767754232225,-300.0,0.00016755,2]
[400633404,1767754232235,-241.0,0.00016755,2]
[400633405,1767754232245,-1200.0,0.00016755,2]
[400633406,1767754232255,-300.0,0.00016755,2]
[400633407,1767754232264,-2221.09575405,0.00016756,2]
[400633408,1767754232274,-999.0,0.00016762,3]
[400633409,1767754232284,-4121.9,0.00016858,2]
[400633410,1767754232294,-500.0,0.0001687,2]
[400633411,1767754232303,-250.0,0.00017,2]
[400633412,1767754232313,-166.66,0.0001703,2]
[400633413,1767754232322,-151.0,0.00017165,2]
[400633414,1767754232332,-151.0,0.00017172,2]
[400633415,1767754232341,-151.0,0.00017185,2]
[400633416,1767754232350,-151.0,0.00017249,2]
[400633417,1767754232360,-151.0,0.00017249,2]
[400633418,1767754232369,-151.0,0.00017262,2]
[400633419,1767754232379,-151.0,0.00017262,2]
[400633420,1767754232389,-151.0,0.00017266,2]
[400633421,1767754232398,-151.0,0.00017266,2]
[400633422,1767754232408,-151.0,0.00017279,2]
[400633423,1767754232419,-151.0,0.00017279,2]
[400633424,1767754232429,-1000.0,0.00017285,2]
[400633425,1767754232439,-166.66,0.00017361,2]
[400633426,1767754232449,-16114.42398458,0.00017488,2]
[400633427,1767754232459,-151732.89609117,0.00017499,2]
[400633428,1767754232471,-3033.40725318,0.00017499,2]
[400633430,1767754232503,-1073.20076212,0.00017499,2]
[400633432,1767754232514,-6355.87353985,0.00017499,2]
[400633434,1767754232525,-1009.24355313,0.00017499,2]
[400633436,1767754232537,-300.8653531,0.00017499,2]
[400633438,1767754232548,-5784.96598384,0.00017499,2]
[400633441,1767754232559,-1407.00725734,0.00017499,2]
[400633443,1767754232571,-966.14333514,0.00017499,2]
[400633445,1767754232582,-3055.13271573,0.00017499,2]
[400633448,1767754232597,-270.69232887,0.00017499,2]
[400633450,1767754232609,-371866.39358986,0.00017499,2]
[400633452,1767754232620,-19923.80713417,0.00017499,2]
[400633454,1767754232634,-105105.6542151,0.00017499,2]
[400633457,1767754232646,-40779.6427045,0.00017499,2]
[400633459,1767754232657,-20120.95044245,0.00017499,2]
[400633461,1767754232668,-7282.46985046,0.00017499,2]
[400633463,1767754232679,-881.507226,0.00017499,2]
[400633465,1767754232690,-653.82212702,0.00017499,2]
[400633467,1767754232702,-3076.876,0.00017499,2]
[400633470,1767754232714,-1427.00894998,0.00017499,2]
[400633472,1767754232725,-1693.74510521,0.00017499,2]
[400633474,1767754232736,-347.43508066,0.00017499,2]
[400633476,1767754232747,-682.15500896,0.00017499,2]
[400633478,1767754232759,-880.68883915,0.00017499,2]
[400633481,1767754232770,-445.96440231,0.00017499,2]
[400633501,1767754238296,-500.0,0.00017498,2]
[400633502,1767754238306,-164.62340728,0.00017498,2]
[400633503,1767754238316,-500.0,0.00017498,2]
[400633504,1767754238327,-500.0,0.00017498,2]
[400633505,1767754238337,-500.0,0.00017498,2]
[400633506,1767754238347,-500.0,0.00017498,2]
[400633507,1767754238357,-364.99421189,0.00017498,2]
[400633508,1767754238367,-500.0,0.00017498,2]
[400633509,1767754238377,-625.95571386,0.00017498,2]
[400633510,1767754238387,-3088.10633996,0.00017499,2]
[400633511,1767754238399,-246754.34481074,0.00017499,2]
[400633512,1767754238409,-16114.42398449,0.00017534,2]
[400633513,1767754238418,-163.0382,0.0001757,2]
[400633514,1767754238428,-550.0,0.00017588,2]
[400633515,1767754238437,-500.0,0.00017588,2]
[400633516,1767754238446,-450.0,0.00017588,2]
[400633517,1767754238456,-319.78478637,0.00017588,2]
[400633518,1767754238466,-339.19668537,0.00017588,2]
[400633519,1767754238475,-228.7717873,0.00017588,2]
[400633520,1767754238488,-234.79062824,0.00017588,2]
[400633521,1767754238497,-500.0,0.00017588,2]
[400633522,1767754238507,-552.18049991,0.00017588,2]
[400633523,1767754238516,-151.0,0.00017589,2]
[400633524,1767754238525,-151.0,0.00017589,2]
[400633525,1767754238534,-151.0,0.00017589,2]
[400633526,1767754238544,-204.59417983,0.00017589,2]
[400633527,1767754238553,-151.0,0.00017589,2]
[400633528,1767754238563,-151.0,0.00017589,2]
[400633529,1767754238573,-289.99586171,0.00017589,2]
[400633530,1767754238582,-151.0,0.00017589,2]
[400633531,1767754238591,-151.0,0.00017589,2]
[400633532,1767754238600,-151.0,0.00017589,2]
[400633533,1767754238610,-151.0,0.00017589,2]
[400633535,1767754238619,-151.0,0.00017589,2]
[400633537,1767754238628,-151.0,0.00017589,2]
[400633538,1767754238638,-151.0,0.00017589,2]
[400633540,1767754238647,-151.0,0.00017589,2]
[400633543,1767754238659,-151.0,0.00017589,2]
[400633544,1767754238679,-151.0,0.00017589,2]
[400633546,1767754238695,-164.16385927,0.00017589,2]
[400633549,1767754238712,-921.815,0.00017599,2]
[400633551,1767754238732,-170.695,0.00017599,2]
[400633553,1767754238741,-343.67371877,0.000176,2]
[400633555,1767754238750,-13417.03925755,0.000176,2]
[400633557,1767754238759,-151.0,0.0001763,2]
[400633559,1767754238768,-13417.0392575,0.00017633,2]
[400633561,1767754238778,-218.90730466,0.00017661,2]
[400633563,1767754238786,-13417.0392575,0.00017667,2]
[400633565,1767754238796,-14422.3254508,0.0001767,2]
[400633567,1767754238805,-1000.0,0.000177,2]
[400633569,1767754238815,-13417.0392575,0.000177,2]
[400633571,1767754238824,-13417.0392575,0.00017733,2]
[400633573,1767754238833,-13417.0392575,0.00017767,2]
[400633575,1767754238843,-500.0,0.00017799,2]
[400633577,1767754238852,-500.0,0.00017799,2]
[400633579,1767754238862,-500.0,0.00017799,2]
[400633581,1767754238871,-520.31559281,0.00017799,2]
[400633583,1767754238880,-500.0,0.00017799,2]
[400633585,1767754238889,-500.0,0.00017799,2]
[400633587,1767754238898,-502.28702111,0.00017799,2]
[400633589,1767754238907,-13417.0392575,0.000178,2]
[400633591,1767754238916,-13417.0392575,0.00017833,2]
[400633592,1767754238926,-13417.0392575,0.00017867,2]
[400633595,1767754238936,-10000.0,0.000179,2]
[400633597,1767754238946,-5980.84262447,0.000179,2]
[400633599,1767754238955,-566.68802336,0.000179,2]
[400633600,1767754238966,-2682.51220031,0.000179,2]
[400633602,1767754238975,-178.03975585,0.000179,3]
[400633604,1767754238984,-184.56071273,0.000179,2]
[400633606,1767754238993,-946.95665452,0.000179,2]
[400633608,1767754239002,-13417.0392575,0.000179,2]
[400633610,1767754239011,-662.7807509,0.000179,2]
[400633612,1767754239021,-1000.0,0.0001791,2]
[400633614,1767754239030,-170.25,0.00017934,2]
[400633616,1767754239039,-310.0,0.00017945,2]
[400633619,1767754239048,-154.90963793,0.0001796,2]
[400633620,1767754239057,-1648.90360021,0.0001797,2]
[400633623,1767754239070,-500.0,0.00017973,2]
[400633625,1767754239082,-500.0,0.00017973,2]
[400633627,1767754239092,-500.0,0.00017973,2]
[400633628,1767754239102,-509.85167705,0.00017973,2]
[400633631,1767754239112,-224.4368293,0.00017973,2]
[400633633,1767754239122,-500.39976205,0.00017973,2]
[400633635,1767754239132,-500.0,0.00017973,2]
[400633637,1767754239142,-500.0,0.00017973,2]
[400633639,1767754239151,-500.0,0.00017973,2]
[400633641,1767754239163,-500.0,0.00017973,2]
[400633642,1767754239175,-500.0,0.00017973,2]
[400633643,1767754239185,-500.0,0.00017973,2]
[400633644,1767754239195,-500.0,0.00017973,2]
[400633645,1767754239207,-500.0,0.00017973,2]
[400633646,1767754239216,-500.0,0.00017973,2]
[400633647,1767754239226,-500.0,0.00017973,2]
[400633648,1767754239237,-552.50710843,0.00017973,2]
[400633649,1767754239245,-410.88426435,0.00017973,2]
[400633650,1767754239254,-500.0,0.00017973,2]
[400633651,1767754239264,-500.0,0.00017973,2]
[400633652,1767754239273,-500.0,0.00017973,2]
[400633653,1767754239282,-500.0,0.00017973,2]
[400633654,1767754239293,-500.0,0.00017973,2]
[400633655,1767754239302,-500.0,0.00017973,2]
[400633657,1767754239312,-154.90963793,0.0001799,2]
[400633659,1767754239321,-154.90963793,0.0001799,2]
[400633661,1767754239330,-151.0,0.00017997,2]
[400633663,1767754239339,-250.0,0.00017998,2]
[400633665,1767754239348,-1846.50872486,0.00017998,2]
[400633667,1767754239357,-195.0,0.00017998,2]
[400633669,1767754239367,-309.54803019,0.00017999,2]
[400633671,1767754239376,-274.431,0.00017999,2]
[400633673,1767754239385,-3654.4949544,0.00017999,2]
[400633675,1767754239394,-3493.2555912,0.00017999,2]
[400633677,1767754239403,-649969.60966537,0.00018,2]
[400633681,1767754239440,-1890459.28855571,0.00018,2]
[400633682,1767754239451,-13497.2315297,0.00018,2]
[400633683,1767754239459,-2942532.97686546,0.00018,2]
[400633684,1767754239470,-2629.97761171,0.00018,2]
[400633685,1767754239481,-36959.68183916,0.00018,2]
[400633686,1767754239492,-884.56417984,0.00018,2]
[400633687,1767754239503,-5294.53491743,0.00018,2]
[400633688,1767754239514,-44631.22656074,0.00018,2]
[400633689,1767754239526,-749.4467989,0.00018,2]
[400633690,1767754239548,-2524.94000031,0.00018,2]
[400633693,1767754240864,-151.0,0.00017252,2]
[400633694,1767754240874,-151.0,0.00017252,2]
[400633695,1767754240884,-1263.07318725,0.0001758,2]
[400633696,1767754240895,-14851.35079724,0.0001758,2]
[400633697,1767754240905,-1103152.53887674,0.00018,2]
[400633710,1767754243918,-659.08978551,0.00017488,2]
[400633711,1767754243927,-500.0,0.0001767,2]
[400633712,1767754243937,-268102.45353452,0.00018,2]
[400633713,1767754244703,-2090.27255546,0.00018,2]
[400633714,1767754244725,-2.6110111,0.00018,2]
[400633715,1767754244810,-16114.42398449,0.00017625,2]
[400633716,1767754244819,-432963.55022422,0.00018,2]
[400633717,1767754244828,-791861.1868795,0.00018,2]
[400633718,1767754244837,-3287.0420799,0.00018,2]
[400633719,1767754244846,-2260.8819225,0.00018,2]
[400633720,1767754244856,-151.0,0.00018,2]
[400633721,1767754244865,-3208.285818,0.00018,2]
[400633722,1767754244874,-151.0,0.00018,2]
[400633723,1767754244883,-151.0,0.00018,2]
[400633724,1767754244892,-151.0,0.00018,2]
[400633725,1767754244901,-178234.5913504,0.00018,2]
[400633726,1767754244910,-158.25601147,0.00018,2]
[400633727,1767754244919,-96041.659267,0.00018,2]
[400633728,1767754244928,-151.0,0.00018,2]
[400633729,1767754244937,-151.0,0.00018,2]
[400633730,1767754244946,-162.671874,0.00018,2]
[400633731,1767754244955,-155.623702,0.00018,2]
[400633732,1767754244964,-730.651319,0.00018,2]
[400633733,1767754244973,-730.651319,0.00018,2]
[400633734,1767754244983,-730.651319,0.00018,2]
[400633735,1767754244992,-730.651319,0.00018,2]
[400633736,1767754245001,-151.0,0.00018,2]
[400633737,1767754245010,-151.0,0.00018,2]
[400633738,1767754245019,-151.0,0.00018,2]
[400633739,1767754245029,-303.263962,0.00018,2]
[400633740,1767754245039,-303.263962,0.00018,2]
[400633741,1767754245049,-303.263962,0.00018,2]
[400633742,1767754245058,-303.263962,0.00018,2]
[400633743,1767754245068,-263.154146,0.00018,2]
[400633744,1767754245078,-263.154146,0.00018,2]
[400633745,1767754245087,-151.0,0.00018,2]
[400633746,1767754245097,-263.154146,0.00018,2]
[400633747,1767754245106,-263.154146,0.00018,2]
[400633748,1767754245115,-174.424159,0.00018,2]
[400633749,1767754245125,-174.424159,0.00018,2]
[400633750,1767754245134,-174.424159,0.00018,2]
[400633751,1767754245144,-168.002619,0.00018,2]
[400633752,1767754245154,-174.424159,0.00018,2]
[400633753,1767754245168,-168.002619,0.00018,2]
[400633754,1767754245178,-168.002619,0.00018,2]
[400633755,1767754245187,-168.002619,0.00018,2]
[400633756,1767754245198,-394.973214,0.00018,2]
[400633757,1767754245209,-394.973214,0.00018,2]
[400633758,1767754245218,-394.973214,0.00018,2]
[400633759,1767754245228,-394.973214,0.00018,2]
[400633760,1767754245239,-290.010833,0.00018,2]
[400633761,1767754245249,-1312.79,0.00018,2]
[400633762,1767754245259,-151.0,0.00018,2]
[400633763,1767754245269,-2220.18473394,0.00018078,2]
[400633764,1767754245278,-201.09010726,0.00018176,2]
[400633765,1767754245288,-250.0,0.00018176,2]
[400633766,1767754245297,-300.0,0.00018176,2]
[400633767,1767754245307,-195.0,0.00018176,2]
[400633768,1767754245316,-600.0,0.00018176,2]
[400633769,1767754245326,-193.0,0.00018228,2]
[400633770,1767754245337,-2500.0,0.00018228,2]
[400633771,1767754245346,-676.2914001,0.00018228,2]
[400633772,1767754245356,-600.0,0.00018228,2]
[400633773,1767754245365,-150.0,0.00018254,2]
[400633774,1767754245375,-1312.79,0.00018274,2]
[400633775,1767754245384,-243.99,0.00018285,2]
[400633776,1767754245394,-300.0,0.00018287,2]
[400633777,1767754245403,-420.0,0.00018305,2]
[400633778,1767754245413,-420.0,0.00018305,2]
[400633779,1767754245422,-250.0,0.00018307,2]
[400633780,1767754245432,-151.0,0.00018356,2]
[400633781,1767754245441,-151.0,0.00018356,2]
[400633782,1767754245451,-730.651319,0.00018356,2]
[400633783,1767754245460,-730.651319,0.00018356,2]
[400633784,1767754245470,-730.651319,0.00018356,2]
[400633785,1767754245479,-730.651319,0.00018356,2]
[400633786,1767754245488,-151.0,0.00018356,2]
[400633787,1767754245498,-151.0,0.00018356,2]
[400633788,1767754245507,-151.0,0.00018356,2]
[400633789,1767754245516,-303.263962,0.00018356,2]
[400633790,1767754245527,-303.263962,0.00018356,2]
[400633791,1767754245539,-303.263962,0.00018356,2]
[400633792,1767754245548,-303.263962,0.00018356,2]
[400633793,1767754245558,-263.154146,0.00018356,2]
[400633794,1767754245567,-263.154146,0.00018356,2]
[400633795,1767754245576,-151.0,0.00018356,2]
[400633796,1767754245586,-263.154146,0.00018356,2]
[400633797,1767754245595,-263.154146,0.00018356,2]
[400633798,1767754245604,-174.424159,0.00018356,2]
[400633799,1767754245614,-174.424159,0.00018356,2]
[400633800,1767754245623,-174.424159,0.00018356,2]
[400633801,1767754245633,-168.002619,0.00018356,2]
[400633802,1767754245642,-174.424159,0.00018356,2]
[400633803,1767754245652,-168.002619,0.00018356,2]
[400633804,1767754245661,-168.002619,0.00018356,2]
[400633805,1767754245671,-168.002619,0.00018356,2]
[400633806,1767754245680,-394.973214,0.00018356,2]
[400633807,1767754245690,-394.973214,0.00018356,2]
[400633808,1767754245700,-394.973214,0.00018356,2]
[400633809,1767754245710,-394.973214,0.00018356,2]
[400633810,1767754245719,-151.748266,0.00018356,2]
[400633811,1767754245730,-53808.18866991,0.00018356,2]